bitfinex/quotes_BTCUSD_20241001
["timestamp","ask_amount","ask_price","bid_price","bid_amount"]
[1727749788692,0.18698466,63451.0,63450.0,0.17208839]
[1727749789117,0.18698466,63451.0,63450.0,0.17008839]
[1727749789376,0.18698466,63451.0,63450.0,0.33154619]
[1727749789795,0.18698466,63451.0,63450.0,0.32954619]
[1727749790009,0.18698466,63451.0,63450.0,0.33254619]
[1727749790229,0.21168089,63451.0,63450.0,0.33254619]
[1727749792023,0.03238089,63451.0,63450.0,0.33254619]
[1727749794587,0.03238089,63451.0,63450.0,0.17494219]
[1727749794588,0.15286221,63451.0,63450.0,0.17494219]
[1727749795699,0.32546221,63451.0,63450.0,0.17494219]
[1727749796556,0.32546221,63451.0,63450.0,0.1581018]
[1727749796771,0.32546221,63451.0,63450.0,0.16895088]
[1727749797207,0.48306321,63451.0,63450.0,0.01249308]
[1727749797427,0.48306321,63451.0,63450.0,0.001644]
[1727749797650,0.48306321,63451.0,63450.0,0.01249308]
[1727749797860,0.48306321,63451.0,63450.0,0.001644]
[1727749798088,0.48306321,63451.0,63450.0,0.01249308]
[1727749798352,0.32546221,63451.0,63450.0,0.01249308]
[1727749798605,0.32546221,63451.0,63450.0,0.001644]
[1727749798606,0.45836698,63451.0,63450.0,0.001644]
[1727749799718,0.45936698,63451.0,63450.0,0.001644]
[1727749799971,0.45836698,63451.0,63450.0,0.001644]
[1727749800210,0.45936698,63451.0,63450.0,0.001644]
[1727749801581,0.48406488,63451.0,63450.0,0.001644]
[1727749802818,0.45936698,63451.0,63450.0,0.001644]
[1727749805890,0.48406493,63451.0,63450.0,0.001644]
[1727749808332,0.53105257,63451.0,63450.0,0.001644]
[1727749808794,0.48406493,63451.0,63450.0,0.001644]
[1727749809517,0.32646393,63451.0,63450.0,0.001644]
[1727749809776,0.48406493,63451.0,63450.0,0.001644]
[1727749810224,0.45936698,63451.0,63450.0,0.001644]
[1727749813307,0.53110693,63451.0,63450.0,0.001644]
[1727749815510,0.55462822,63451.0,63450.0,0.001644]
[1727749815757,0.48406436,63451.0,63450.0,0.001644]
[1727749816666,0.48306436,63451.0,63450.0,0.001644]
[1727749817117,0.48406436,63451.0,63450.0,0.002644]
[1727749817826,0.48506436,63451.0,63450.0,0.003644]
[1727749818078,0.48706436,63451.0,63450.0,0.003644]
[1727749818296,0.48306436,63451.0,63450.0,0.001644]
[1727749818507,0.45936698,63451.0,63450.0,0.002644]
[1727749818722,0.45936698,63451.0,63450.0,0.003644]
[1727749818723,0.46136698,63451.0,63450.0,0.003644]
[1727749818946,0.45936698,63451.0,63450.0,0.002644]
[1727749819168,0.48606617,63451.0,63450.0,0.003644]
[1727749819643,0.302049,63451.0,63450.0,0.003644]
[1727749819857,0.43613686,63451.0,63450.0,0.003644]
[1727749820121,0.25501898,63451.0,63450.0,0.003644]
[1727749820307,0.25500999,63451.0,63450.0,0.01453027]
[1727749820533,0.37549131,63451.0,63450.0,0.01453027]
[1727749820747,0.53309231,63451.0,63450.0,0.01453027]
[1727749820965,0.53209231,63451.0,63450.0,0.002644]
[1727749821428,0.53109231,63451.0,63450.0,0.001644]
[1727749821864,0.53209231,63451.0,63450.0,0.001644]
[1727749822331,0.53309231,63451.0,63450.0,0.001644]
[1727749822548,0.53409231,63451.0,63450.0,0.001644]
[1727749822779,0.53109231,63451.0,63450.0,0.001644]
[1727749823024,0.53209231,63451.0,63450.0,0.001644]
[1727749823471,0.53109231,63451.0,63450.0,0.001644]
[1727749823907,0.53209231,63451.0,63450.0,0.001644]
[1727749825792,0.43599231,63451.0,63450.0,0.001644]
[1727749828370,0.43599231,63451.0,63450.0,0.0125362]
[1727749828599,0.43599231,63451.0,63450.0,0.001644]
[1727749829512,0.20189131,63451.0,63450.0,0.001644]
[1727749829753,0.35948687,63451.0,63450.0,0.001644]
[1727749830243,0.20088587,63451.0,63450.0,0.0125175]
[1727749830474,0.20188587,63451.0,63450.0,0.001644]
[1727749830706,0.20188587,63451.0,63450.0,0.3265793]
[1727749830707,0.08140455,63451.0,63450.0,0.3265793]
[1727749830933,0.03052219,63451.0,63450.0,0.3157058]
[1727749831149,0.03152219,63451.0,63450.0,0.3265793]
[1727749831366,0.03052219,63451.0,63450.0,0.3265793]
[1727749831578,0.03238385,63451.0,63450.0,0.3265793]
[1727749831801,0.03052219,63451.0,63450.0,0.3265793]
[1727749832018,0.03238385,63451.0,63450.0,0.3265793]
[1727749832457,0.03238385,63451.0,63450.0,0.3325793]
[1727749833359,0.03052219,63451.0,63450.0,0.3325793]
[1727749833798,0.03052219,63451.0,63450.0,0.3265793]
[1727749834241,0.03238385,63451.0,63450.0,0.3385793]
[1727749835586,0.03052219,63451.0,63450.0,0.3615793]
[1727749837143,0.02552219,63451.0,63450.0,0.5544793]
[1727749837362,0.02552219,63451.0,63450.0,0.69066362]
[1727749838062,0.02552219,63451.0,63450.0,0.68466362]
[1727749838523,0.000823,63451.0,63450.0,0.67866362]
[1727749838957,0.000823,63451.0,63450.0,0.69066362]
[1727749840293,0.000823,63451.0,63450.0,0.70266362]
[1727749840506,0.000823,63451.0,63450.0,0.69066214]
[1727749840952,0.000823,63451.0,63450.0,0.6687693]
[1727749841162,0.000823,63451.0,63450.0,0.69066172]
[1727749841373,0.000823,63451.0,63450.0,0.69866172]
[1727749841586,0.02551624,63451.0,63450.0,0.69866172]
[1727749841806,0.02551624,63451.0,63450.0,0.69066172]
[1727749842099,0.000823,63451.0,63450.0,0.69066172]
[1727749842343,0.000823,63451.0,63450.0,0.71956321]
[1727749842801,0.000823,63451.0,63450.0,0.72456321]
[1727749843024,0.000823,63451.0,63450.0,1.4103606]
[1727749843251,0.000823,63451.0,63450.0,1.52916574]
[1727749843493,0.000823,63451.0,63450.0,1.50516574]
[1727749843735,0.000823,63451.0,63450.0,1.40961547]
[1727749843953,0.000823,63451.0,63450.0,1.58784736]
[1727749844173,0.000823,63451.0,63450.0,1.41600367]
[1727749844410,0.000823,63451.0,63450.0,1.43000367]
[1727749844643,0.000823,63451.0,63450.0,1.15494404]
[1727749845069,0.000823,63451.0,63450.0,1.18294404]
[1727749845697,0.000823,63451.0,63450.0,1.41358224]
[1727749846134,0.000823,63451.0,63450.0,1.39958224]
[1727749846347,0.000823,63451.0,63450.0,1.41358224]
[1727749846559,0.000823,63451.0,63450.0,1.36639714]
[1727749846990,0.000823,63451.0,63450.0,1.34447086]
[1727749847206,0.000823,63451.0,63450.0,1.36638384]
[1727749849143,1e-06,63451.0,63450.0,1.36638384]
[1727749849357,1e-06,63451.0,63450.0,1.43710482]
[1727749849652,1e-06,63451.0,63450.0,1.65128247]
[1727749849884,0.049184,63462.0,63461.0,0.19079]
[1727749850100,0.049184,63462.0,63461.0,0.62673778]
[1727749850309,0.02468847,63464.0,63461.0,0.62673778]
[1727749850310,0.02468847,63464.0,63463.0,0.03659]
[1727749850527,0.02468847,63464.0,63463.0,0.6570729]
[1727749850745,0.02468847,63464.0,63463.0,0.67895591]
[1727749850955,0.02468847,63464.0,63463.0,0.68954975]
[1727749851597,0.000822,63466.0,63465.0,0.667157]
[1727749851814,0.000822,63466.0,63465.0,0.84549781]
[1727749852026,0.000822,63466.0,63465.0,0.85607748]
[1727749852666,0.000822,63466.0,63465.0,1.27535248]
[1727749853327,0.000822,63466.0,63465.0,1.27735248]
[1727749853576,0.000822,63466.0,63465.0,0.87007748]
[1727749853783,0.000822,63466.0,63465.0,0.87004244]
[1727749854001,0.000822,63466.0,63465.0,0.88404244]
[1727749856032,0.000822,63466.0,63465.0,0.88604244]
[1727749856974,0.000822,63466.0,63465.0,0.86419447]
[1727749857170,0.000822,63466.0,63465.0,0.9004134]
[1727749859764,0.000822,63466.0,63465.0,0.8984134]
[1727749860238,0.000822,63466.0,63465.0,0.8984289]
[1727749861669,0.000822,63466.0,63465.0,0.898529]
[1727749865583,0.000822,63466.0,63465.0,0.87666723]
[1727749865846,0.000822,63466.0,63465.0,1.01889967]
[1727749866828,0.000822,63466.0,63465.0,0.50617137]
[1727749866829,0.178422,63466.0,63465.0,0.50617137]
[1727749868110,0.178422,63466.0,63465.0,0.38429457]
[1727749868346,0.178422,63466.0,63465.0,0.40608057]
[1727749868579,0.178422,63466.0,63465.0,0.38429457]
[1727749868853,0.178422,63466.0,63465.0,0.36049158]
[1727749869083,0.178422,63466.0,63465.0,0.37029457]
[1727749869333,0.178422,63466.0,63465.0,0.46829457]
[1727749869565,0.178422,63466.0,63465.0,0.50207636]
[1727749869804,0.178422,63466.0,63465.0,0.49007636]
[1727749870051,0.178422,63466.0,63465.0,0.51107636]
[1727749870292,0.178422,63466.0,63465.0,0.52207636]
[1727749870540,0.178422,63466.0,63465.0,0.51107636]
[1727749871053,0.178422,63466.0,63465.0,0.52307636]
[1727749871323,0.178422,63466.0,63465.0,0.50107636]
[1727749871582,0.178422,63466.0,63465.0,0.51307636]
[1727749872581,0.178422,63466.0,63465.0,0.52407636]
[1727749872824,0.178422,63466.0,63465.0,0.51307636]
[1727749873059,0.178422,63466.0,63465.0,0.52507636]
[1727749875247,0.178422,63466.0,63465.0,0.50329457]
[1727749875464,0.178422,63466.0,63465.0,0.52510102]
[1727749876759,0.000822,63466.0,63465.0,0.52510102]
[1727749878739,0.000822,63466.0,63465.0,0.50329457]
[1727749879199,0.000822,63466.0,63465.0,0.52507897]
[1727749881640,0.02550941,63466.0,63465.0,0.50329457]
[1727749881904,0.02550941,63466.0,63465.0,0.52506496]
[1727749883940,0.02550941,63466.0,63465.0,0.51306496]
[1727749884371,0.02550941,63466.0,63465.0,0.52706496]
[1727749884807,0.02550941,63466.0,63465.0,0.51306496]
[1727749885269,0.02550941,63466.0,63465.0,0.52706496]
[1727749885485,0.02550941,63466.0,63465.0,0.51506496]
[1727749885721,0.02550941,63466.0,63465.0,0.52906496]
[1727749888510,0.000822,63466.0,63465.0,0.52905039]
[1727749890234,0.000822,63466.0,63465.0,0.54400387]
[1727749891539,0.02550944,63466.0,63465.0,0.54400387]
[1727749893552,0.000822,63466.0,63465.0,0.54400387]
[1727749894419,0.000822,63466.0,63465.0,0.52224805]
[1727749894614,0.000822,63466.0,63465.0,0.52906186]
[1727749895597,0.000822,63466.0,63465.0,0.54402432]
[1727749896954,0.000822,63466.0,63465.0,0.50729457]
[1727749897139,0.000822,63466.0,63465.0,0.54406026]
[1727749897544,0.000822,63466.0,63465.0,0.52908748]
[1727749897782,0.000822,63466.0,63465.0,0.54405938]
[1727749898000,0.000822,63466.0,63465.0,0.54405939]
[1727749900028,0.000822,63466.0,63465.0,0.5680173]
[1727749900233,0.000822,63466.0,63465.0,0.5730173]
[1727749900855,0.000822,63466.0,63465.0,0.55122514]
[1727749901070,0.000822,63466.0,63465.0,0.60794113]
[1727749901691,0.025507,63466.0,63465.0,0.60794113]
[1727749902313,0.000822,63466.0,63465.0,0.60794113]
[1727749902535,0.23677793,63473.0,63466.0,0.123]
[1727749902761,0.23677793,63473.0,63472.0,0.280549]
[1727749902984,0.23677793,63473.0,63472.0,0.51858844]
[1727749903286,0.005,63477.0,63475.0,0.280542]
[1727749903423,0.02632895,63478.0,63475.0,0.50868845]
[1727749903638,0.03132895,63478.0,63475.0,0.51856019]
[1727749903860,0.005,63477.0,63475.0,0.51856019]
[1727749904076,0.02632895,63478.0,63475.0,0.55015019]
[1727749904293,0.005,63477.0,63475.0,0.55015019]
[1727749905223,0.005,63477.0,63475.0,0.55515019]
[1727749905648,0.02632895,63478.0,63475.0,0.55515019]
[1727749905866,0.02632895,63478.0,63475.0,0.56915019]
[1727749906092,0.02632895,63478.0,63475.0,0.56415019]
[1727749906521,0.02632895,63478.0,63475.0,0.57815019]
[1727749906739,0.02632895,63478.0,63475.0,0.56415019]
[1727749906953,0.02632895,63478.0,63475.0,0.54917753]
[1727749907230,0.02632895,63478.0,63475.0,0.56299118]
[1727749907663,0.001644,63478.0,63475.0,0.57795284]
[1727749909408,0.006644,63478.0,63475.0,0.57795284]
[1727749909620,0.001644,63478.0,63475.0,0.57795284]
[1727749909842,0.001644,63478.0,63475.0,0.69834725]
[1727749910277,0.001644,63478.0,63475.0,0.68338559]
[1727749910501,0.001644,63478.0,63475.0,0.69834294]
[1727749910971,0.02632719,63476.0,63475.0,0.71515136]
[1727749912924,0.02632719,63476.0,63475.0,0.59475695]
[1727749913379,0.02632719,63476.0,63475.0,0.50646154]
[1727749913618,0.02632719,63476.0,63475.0,0.54497042]
[1727749913898,0.02632719,63476.0,63475.0,0.57969375]
[1727749914755,0.02632719,63476.0,63475.0,0.59464257]
[1727749915609,0.02632719,63476.0,63475.0,0.57969375]
[1727749915815,0.02632719,63476.0,63475.0,0.59464446]
[1727749916681,0.02632719,63476.0,63475.0,0.57970682]
[1727749916906,0.001644,63476.0,63475.0,0.57970682]
[1727749917996,0.001644,63476.0,63475.0,0.52816572]
[1727749918227,0.097344,63476.0,63475.0,0.52816572]
[1727749920017,0.097344,63476.0,63475.0,0.50646154]
[1727749920221,0.097344,63476.0,63475.0,0.52814381]
[1727749920872,0.178044,63476.0,63475.0,0.52814381]
[1727749922050,0.178044,63476.0,63475.0,0.49655381]
[1727749922791,0.20272918,63476.0,63475.0,0.49655381]
[1727749923503,0.20272918,63476.0,63475.0,0.46855381]
[1727749923720,0.20272918,63476.0,63475.0,0.47455381]
[1727749923954,0.20272918,63476.0,63475.0,0.46855381]
[1727749924194,0.20272918,63476.0,63475.0,0.47555381]
[1727749924442,0.20272918,63476.0,63475.0,0.47955381]
[1727749925986,0.20272918,63476.0,63475.0,0.46855381]
[1727749926201,0.20272918,63476.0,63475.0,0.47255381]
[1727749926492,0.20272918,63476.0,63475.0,0.47655381]
[1727749927400,0.20272918,63476.0,63475.0,0.49338476]
[1727749931695,0.178044,63476.0,63475.0,0.49338476]
[1727749932339,0.178044,63476.0,63475.0,0.49337521]
[1727749934609,0.02632927,63476.0,63475.0,0.50834096]
[1727749934829,0.001644,63476.0,63475.0,0.50834096]
[1727749935259,0.001644,63476.0,63475.0,0.49337521]
[1727749935491,0.001644,63476.0,63475.0,0.49349307]
[1727749935717,0.001644,63476.0,63475.0,0.49162922]
[1727749935940,0.001644,63476.0,63475.0,0.5302511]
[1727749936153,0.001644,63476.0,63475.0,0.49349342]
[1727749938315,0.001644,63476.0,63475.0,0.50847049]
[1727749939022,0.001644,63476.0,63475.0,0.5084896]
[1727749940792,0.001644,63476.0,63475.0,0.5400796]
[1727749941703,0.001644,63476.0,63475.0,0.5360796]
[1727749941984,0.001644,63476.0,63475.0,0.5430796]
[1727749942427,0.001644,63476.0,63475.0,0.5320796]
[1727749942673,0.001644,63476.0,63475.0,0.5440796]
[1727749942890,0.001644,63476.0,63475.0,0.5560796]
[1727749943166,0.001644,63476.0,63475.0,0.5630796]
[1727749943429,0.001644,63476.0,63475.0,1.87137174]
[1727749943649,0.001644,63476.0,63475.0,1.99962678]
[1727749943884,0.001644,63476.0,63475.0,1.99762678]
[1727749944346,0.001644,63476.0,63475.0,1.98562678]
[1727749944622,0.001644,63476.0,63475.0,2.00003552]
[1727749944882,0.001644,63476.0,63475.0,2.01403552]
[1727749945130,0.001644,63476.0,63475.0,1.98803552]
[1727749945374,0.001644,63476.0,63475.0,1.96297248]
[1727749945614,0.001644,63476.0,63475.0,1.92712047]
[1727749945847,0.001644,63476.0,63475.0,1.94108822]
[1727749946080,0.001644,63476.0,63475.0,1.96270484]
[1727749947484,0.001644,63476.0,63475.0,1.98730805]
[1727749948201,0.001644,63476.0,63475.0,2.08207805]
[1727749949202,0.001644,63476.0,63475.0,2.1636273]
[1727749949494,0.001644,63476.0,63475.0,2.14576609]
[1727749949688,0.001644,63476.0,63475.0,2.18415175]
[1727749949938,0.001644,63476.0,63475.0,2.19908582]
[1727749951129,0.001644,63476.0,63475.0,2.08096716]
[1727749951392,0.001644,63476.0,63475.0,2.05637435]
[1727749952124,0.001644,63476.0,63475.0,2.19908582]
[1727749952367,0.001644,63476.0,63475.0,2.05637435]
[1727749952582,0.001644,63476.0,63475.0,2.03476736]
[1727749952795,0.001644,63476.0,63475.0,2.04156487]
[1727749953265,0.001644,63476.0,63475.0,2.13600932]
[1727749954140,0.001644,63476.0,63475.0,2.13603028]
[1727749954354,0.001644,63476.0,63475.0,1.46802628]
[1727749954573,0.001644,63476.0,63475.0,2.37779628]
[1727749955389,0.001644,63476.0,63475.0,2.28372628]
[1727749955745,0.001644,63476.0,63475.0,2.09583519]
[1727749955949,0.001644,63476.0,63475.0,2.00139361]
[1727749956365,0.001644,63476.0,63475.0,1.98198361]
[1727749957035,0.001644,63476.0,63475.0,2.16925698]
[1727749957266,0.001644,63476.0,63475.0,2.26368027]
[1727749958118,0.001644,63476.0,63475.0,2.20608327]
[1727749958813,0.001644,63476.0,63475.0,2.17574327]
[1727749959242,0.001644,63476.0,63475.0,2.18205427]
[1727749959439,0.001644,63476.0,63475.0,2.16805427]
[1727749959872,0.001644,63476.0,63475.0,2.16814654]
[1727749960071,0.001644,63476.0,63475.0,2.15414654]
[1727749960480,0.001644,63476.0,63475.0,2.16814654]
[1727749960938,0.001644,63476.0,63475.0,2.18214654]
[1727749961332,0.001644,63476.0,63475.0,2.16814654]
[1727749961733,0.001644,63476.0,63475.0,2.18214654]
[1727749962356,0.001644,63476.0,63475.0,1.95626454]
[1727749962561,0.001644,63476.0,63475.0,1.41991131]
[1727749963192,0.001644,63476.0,63475.0,1.38131591]
[1727749963615,0.001644,63476.0,63475.0,1.3254911]
[1727749965400,0.001644,63476.0,63475.0,1.3500779]
[1727749966063,0.001644,63476.0,63475.0,0.9421939]
[1727749966283,0.001644,63476.0,63475.0,1.03800151]
[1727749966507,0.001644,63476.0,63475.0,0.99940303]
[1727749966726,0.001644,63476.0,63475.0,1.03806258]
[1727749969818,0.001644,63476.0,63475.0,1.0381144]
[1727749972552,0.001644,63476.0,63475.0,1.06273363]
[1727749973025,0.001644,63476.0,63475.0,1.06282894]
[1727749973444,0.001644,63476.0,63475.0,1.03818396]
[1727749973913,0.001644,63476.0,63475.0,1.64732303]
[1727749974140,0.001644,63476.0,63475.0,1.76803601]
[1727749974362,0.001644,63476.0,63475.0,1.90122693]
[1727749974833,0.001644,63478.0,63477.0,0.19926534]
[1727749975061,0.001644,63478.0,63477.0,1.89731337]
[1727749975289,1e-06,63479.0,63478.0,0.61582675]
[1727749975512,1e-06,63479.0,63478.0,3.8759585]
[1727749975733,1e-06,63479.0,63478.0,3.2759355]
[1727749975945,1e-06,63479.0,63478.0,3.2397805]
[1727749976169,1e-06,63479.0,63478.0,3.26979947]
[1727749976411,1e-06,63479.0,63478.0,2.83420647]
[1727749976622,1e-06,63479.0,63478.0,2.37748747]
[1727749976837,1e-06,63479.0,63478.0,1.82695847]
[1727749977271,1e-06,63479.0,63478.0,1.84095847]
[1727749977485,1e-06,63479.0,63478.0,1.86825758]
[1727749977730,1e-06,63479.0,63478.0,1.77348758]
[1727749977915,1e-06,63479.0,63478.0,3.38767058]
[1727749978160,1e-06,63479.0,63478.0,3.40167058]
[1727749978589,1e-06,63479.0,63478.0,3.4008754]
[1727749979709,1e-06,63479.0,63478.0,3.2212594]
[1727749979935,1e-06,63479.0,63478.0,3.1737084]
[1727749980355,1e-06,63479.0,63478.0,3.0337534]
[1727749981689,1e-06,63479.0,63478.0,3.03407632]
[1727749981922,1e-06,63479.0,63478.0,3.03439421]
[1727749982813,1e-06,63479.0,63478.0,2.6934248]
[1727749983030,1e-06,63479.0,63478.0,1.25175521]
[1727749983244,0.000823,63479.0,63478.0,1.26575521]
[1727749983468,0.000823,63479.0,63478.0,1.27975521]
[1727749983701,0.000823,63479.0,63478.0,1.1453608]
[1727749983921,0.000823,63479.0,63478.0,1.27950856]
[1727749984434,0.000823,63479.0,63478.0,1.23595479]
[1727749984650,0.000823,63479.0,63478.0,1.22081704]
[1727749984881,0.000823,63479.0,63478.0,1.20803783]
[1727749985068,0.000823,63479.0,63478.0,1.20979094]
[1727749985514,0.000823,63479.0,63478.0,1.22379094]
[1727749986164,0.000823,63479.0,63478.0,1.01391283]
[1727749986380,0.000823,63479.0,63478.0,0.83868895]
[1727749986599,0.000823,63479.0,63478.0,0.84563925]
[1727749986840,0.000823,63479.0,63478.0,0.96375758]
[1727749987047,0.000823,63479.0,63478.0,0.84563925]
[1727749987969,0.170423,63479.0,63478.0,0.67713236]
[1727749988212,0.170423,63479.0,63478.0,0.47330187]
[1727749988423,0.170423,63479.0,63478.0,0.40241371]
[1727749988858,0.170423,63479.0,63478.0,0.38841371]
[1727749989077,0.170423,63479.0,63478.0,0.37154071]
[1727749989511,0.170423,63479.0,63478.0,0.35754071]
[1727749989730,0.170423,63479.0,63478.0,0.37954071]
[1727749989950,0.170423,63479.0,63478.0,0.47154071]
[1727749990168,0.170423,63479.0,63478.0,0.45754071]
[1727749990409,0.170423,63479.0,63478.0,0.50254071]
[1727749990652,0.170423,63479.0,63478.0,0.49154071]
[1727749990876,0.170423,63479.0,63478.0,0.49054071]
[1727749991350,0.170423,63479.0,63478.0,0.50054071]
[1727749992263,0.170423,63479.0,63478.0,0.49054071]
[1727749992502,0.170423,63479.0,63478.0,0.50154071]
[1727749992754,0.170423,63479.0,63478.0,0.49154071]
[1727749993172,0.170423,63479.0,63478.0,0.50254071]
[1727749994813,0.170423,63479.0,63478.0,0.50418471]
[1727749997283,0.170423,63479.0,63478.0,0.47259471]
[1727749998367,0.19510514,63479.0,63478.0,0.47259471]
[1727749998770,0.170423,63479.0,63478.0,0.47259471]
[1727750001904,0.19510507,63479.0,63478.0,0.47259471]
[1727750002577,0.19510507,63479.0,63478.0,0.50417471]
[1727750006130,0.170423,63479.0,63478.0,0.50417471]
[1727750009562,0.19510463,63479.0,63478.0,0.50417471]
[1727750011738,0.19510463,63479.0,63478.0,0.49317471]
[1727750012196,0.19510463,63479.0,63478.0,0.50717471]
[1727750012449,0.19510463,63479.0,63478.0,0.47559471]
[1727750012687,0.19510463,63479.0,63478.0,0.46459471]
[1727750012917,0.19510463,63479.0,63478.0,0.47859471]
[1727750013370,0.170423,63479.0,63478.0,0.47859471]
[1727750014045,0.170423,63479.0,63478.0,0.51017471]
[1727750015379,0.170423,63479.0,63478.0,0.50628647]
[1727750016286,0.19510443,63479.0,63478.0,0.51032821]
[1727750016500,0.19510443,63479.0,63478.0,0.50629031]
[1727750016935,0.19510443,63479.0,63478.0,0.51032756]
[1727750024459,0.170423,63479.0,63478.0,0.51032756]
[1727750027811,0.19510495,63479.0,63478.0,0.51032756]
[1727750030644,0.19510495,63479.0,63478.0,0.51042766]
[1727750035089,0.19510495,63479.0,63478.0,0.5319762]
[1727750035090,0.170423,63479.0,63478.0,0.5319762]
[1727750038343,0.19510457,63479.0,63478.0,0.5319762]
[1727750039335,0.19510457,63479.0,63478.0,0.53195607]
[1727750039841,0.19510457,63479.0,63478.0,0.53195615]
[1727750040585,0.19510457,63479.0,63478.0,0.52793798]
[1727750041542,0.19510457,63479.0,63478.0,0.50640949]
[1727750042056,0.19510457,63479.0,63478.0,0.52799866]
[1727750042507,0.170423,63479.0,63478.0,0.53204545]
[1727750044682,0.170423,63479.0,63478.0,0.56672038]
[1727750044905,0.170423,63479.0,63478.0,0.56267457]
[1727750045151,0.170423,63479.0,63478.0,0.56672083]
[1727750045657,0.19510451,63479.0,63478.0,0.56672083]
[1727750048181,0.19510451,63479.0,63478.0,0.56671492]
[1727750049084,0.19510451,63479.0,63478.0,0.56266828]
[1727750049324,0.19510451,63479.0,63478.0,0.56671083]
[1727750049541,0.19510451,63479.0,63478.0,0.56266525]
[1727750050886,0.170423,63479.0,63478.0,0.56671083]
[1727750051308,0.170423,63479.0,63478.0,0.56266572]
[1727750051568,0.170423,63479.0,63478.0,0.54501364]
[1727750051781,0.170423,63479.0,63478.0,0.56661406]
[1727750052047,0.170423,63479.0,63478.0,0.53503405]
[1727750052293,0.000823,63479.0,63478.0,0.60991156]
[1727750052518,0.000823,63479.0,63478.0,0.63358292]
[1727750052748,0.000823,63479.0,63478.0,0.82890097]
[1727750052966,0.000823,63479.0,63478.0,0.82879412]
[1727750053463,0.000823,63479.0,63478.0,0.85246384]
[1727750054486,0.000823,63479.0,63478.0,0.74378497]
[1727750054891,0.000823,63479.0,63478.0,0.75778497]
[1727750055302,0.000823,63479.0,63478.0,0.87813736]
[1727750056076,0.000823,63479.0,63478.0,0.86413736]
[1727750056493,0.000823,63479.0,63478.0,0.87813736]
[1727750056706,0.000823,63479.0,63478.0,0.97781623]
[1727750056920,0.000823,63479.0,63478.0,1.38703736]
[1727750057131,0.000823,63479.0,63478.0,3.87564393]
[1727750057758,0.000823,63479.0,63478.0,3.87500264]
[1727750057973,0.000823,63479.0,63478.0,4.01687735]
[1727750058204,0.000823,63479.0,63478.0,3.94177264]
[1727750058424,0.000823,63479.0,63478.0,3.66887164]
[1727750058658,0.000823,63479.0,63478.0,3.47874264]
[1727750058870,0.000823,63479.0,63478.0,3.46474264]
[1727750059082,0.000823,63479.0,63478.0,3.39281664]
[1727750059309,0.000823,63479.0,63478.0,3.20286664]
[1727750059523,0.000823,63479.0,63478.0,3.09027822]
[1727750059745,0.000823,63479.0,63478.0,2.84905322]
[1727750059970,0.000823,63479.0,63478.0,2.77745322]
[1727750060187,0.000823,63479.0,63478.0,2.75447122]
[1727750060409,0.000823,63479.0,63478.0,2.52136564]
[1727750060834,0.000823,63479.0,63478.0,2.34879683]
[1727750061146,0.000823,63479.0,63478.0,2.05972246]
[1727750061245,0.000823,63479.0,63478.0,2.07572246]
[1727750061484,0.000823,63479.0,63478.0,1.32402407]
[1727750061751,0.000823,63479.0,63478.0,1.56458047]
[1727750062019,0.000823,63479.0,63478.0,1.06041201]
[1727750062268,0.000823,63479.0,63478.0,0.78062753]
[1727750062513,0.000823,63479.0,63478.0,0.75262753]
[1727750062771,0.000823,63479.0,63478.0,0.76662753]
[1727750063226,0.000823,63479.0,63478.0,0.75262753]
[1727750063459,0.000823,63479.0,63478.0,0.93686635]
[1727750063699,0.000823,63479.0,63478.0,0.88962753]
[1727750063940,0.000823,63479.0,63478.0,0.89462753]
[1727750064198,0.000823,63479.0,63478.0,0.92786359]
[1727750064448,0.000823,63479.0,63478.0,0.95897503]
[1727750064693,0.000823,63479.0,63478.0,0.94497503]
[1727750064938,0.000823,63479.0,63478.0,0.95897503]
[1727750065171,0.000823,63479.0,63478.0,0.94497503]
[1727750065806,0.000823,63479.0,63478.0,0.95897503]
[1727750066232,0.000823,63479.0,63478.0,0.94497503]
[1727750066445,0.000823,63479.0,63478.0,0.96148667]
[1727750066655,0.000823,63479.0,63478.0,0.97548667]
[1727750066867,0.000823,63479.0,63478.0,0.96148667]
[1727750067320,0.000823,63479.0,63478.0,0.90368695]
[1727750067508,0.000823,63479.0,63478.0,0.95892242]
[1727750067724,0.000823,63479.0,63478.0,0.97543522]
[1727750068146,0.000823,63479.0,63478.0,0.97543401]
[1727750070602,0.000823,63479.0,63478.0,0.9754363]
[1727750071024,0.000823,63479.0,63478.0,0.9614363]
[1727750071252,0.000823,63479.0,63478.0,0.9754383]
[1727750072127,0.000823,63479.0,63478.0,0.96143516]
[1727750072341,0.000823,63479.0,63478.0,1.18898036]
[1727750072582,0.000823,63479.0,63478.0,1.11814084]
[1727750077012,0.000823,63479.0,63478.0,1.10162804]
[1727750077229,0.000823,63479.0,63478.0,1.06288665]
[1727750077457,0.000823,63479.0,63478.0,1.11778044]
[1727750078652,0.000823,63479.0,63478.0,1.21222168]
[1727750080371,0.000823,63479.0,63478.0,1.19870747]
[1727750080602,0.000823,63479.0,63478.0,1.18470747]
[1727750081085,0.000823,63479.0,63478.0,1.19870747]
[1727750081806,0.000823,63479.0,63478.0,1.21270747]
[1727750082006,0.000823,63479.0,63478.0,0.92855886]
[1727750082165,0.000823,63479.0,63478.0,1.11836272]
[1727750083451,0.000823,63479.0,63478.0,1.11834617]
[1727750084478,0.000823,63479.0,63478.0,1.21278865]
[1727750085150,0.000823,63479.0,63478.0,1.11834617]
[1727750086459,0.000823,63479.0,63478.0,1.21278865]
[1727750089341,0.000823,63479.0,63478.0,1.21282659]
[1727750089796,0.000823,63479.0,63478.0,1.11834617]
[1727750090011,0.000823,63479.0,63478.0,1.11837982]
[1727750090471,0.000823,63479.0,63478.0,1.21286024]
[1727750091573,0.000823,63479.0,63478.0,1.23667923]
[1727750091791,0.000823,63479.0,63478.0,1.23830141]
[1727750092209,0.000823,63479.0,63478.0,1.24030141]
[1727750092409,0.000823,63479.0,63478.0,1.14579766]
[1727750092824,0.000823,63479.0,63478.0,1.14379766]
[1727750093037,0.000823,63479.0,63478.0,1.07167594]
[1727750093258,0.000823,63479.0,63478.0,1.14597467]
[1727750093471,0.000823,63479.0,63478.0,1.26215524]
[1727750095240,0.000822,63484.0,63483.0,0.26566034]
[1727750095481,0.000822,63484.0,63483.0,0.9428218]
[1727750095696,0.000822,63484.0,63483.0,0.939672]
[1727750095913,0.000822,63484.0,63483.0,1.731566]
[1727750096347,0.000822,63484.0,63483.0,1.84908968]
[1727750096583,0.28665713,63496.0,63495.0,0.03158]